[Event "FRA-ch Teams Top 16-Bas 2022"]
[Site "Chartres"]
[Date "2022.06.19"]
[Round "11.1"]
[White "Kulaots, Kaido"]
[Black "Malakhov, Vladimir"]
[Result "1/2-1/2"]
[ECO "C67"]
[WhiteElo "2537"]
[BlackElo "2652"]
[Annotator "TA"]
[PlyCount "97"]
[EventDate "2022.06.16"]
[EventType "team-tourn"]
[EventCountry "FRA"]
[SourceTitle "playchess.com"]
[Source "ChessBase"]
[SourceQuality "1"]
[TimeControl "40/5400+30:1800+30"]

{[%evp 18,97,16,19,22,22,22,22,22,14,22,15,20,20,20,15,15,9,20,34,21,25,16,7,18,12,17,5,2,5,14,9,31,31,25,27,12,21,22,10,12,0,0,0,0,0,0,0,12,0,0,0,0,0,0,0,0,0,0,0,0,0,0,0,0,0,0,0,0,0,0,0,0,0,0,0,0,0,0,0,0,0]} 1. e4 {[%emt 0:00:05]} e5 {[%emt 0:00:10]} 2. Nf3 {[%emt 0:00:17]} Nc6 {[%emt 0:00:05]} 3. Bb5 {[%emt 0:00:20]} Nf6 {[%emt 0:00:07]} 4. O-O {[%emt 0:00:30][%cal Bh1f1,Bf1e1,Be1e5][%mdl 32]} Nxe4 {[%emt 0:00:06]} 5. Re1 {[%emt 0:00:18]} Nd6 {[%emt 0:00:06]} 6. Nxe5 {[%emt 0:00:08]} Be7 {[%emt 0:00:08]} 7. Bf1 {[%emt 0:00:08]} Nxe5 {[%emt 0:01:38]} 8. Rxe5 {[%emt 0:00:06]} O-O {[%emt 0:00:04]} 9. d4 {[%emt 0:01:14][%cal Bd2d4,Bd4d5][%mdl 32]} Bf6 {[%emt 0:00:15]} 10. Re1 {[%emt 0:00:20]} Nf5 {[%emt 0:00:13] C67: Ruy Lopez: Berlin Defence: 4 0-0 Nxe4.} 11. d5 {[%emt 0:01:49]} Re8 {[%emt 0:00:17]} 12. Rxe8+ {[%emt 0:00:58]} Qxe8 {[%emt 0:00:05]} 13. Qd3 {[%emt 0:00:59]} d6 {[%emt 0:00:17][%cal Bd7d6,Bd6d5,Bd5d4][%mdl 32]} 14. Nd2 {[%emt 0:00:26]} c6 {[%emt 0:00:23]} 15. c3 {[%emt 0:01:45]} cxd5 {[%emt 0:00:17]} 16. Qxd5 {[%emt 0:00:22]} Qc6 {[%emt 0:00:08]} 17. Qd3 {[%emt 0:04:31]} d5 {[%emt 0:00:22]} 18. Nf3 {[%emt 0:01:50]} h6 {[%emt 0:00:10]} 19. Bf4 {[%emt 0:03:47]} Be6 {[%emt 0:00:16]} 20. Re1 {[%emt 0:04:58] [#]} d4 $146 {[%emt 0:10:00][%cal Rd4c3]} ({Predecessor:} 20... Qc4 21. Be5 Bxe5 22. Rxe5 Qxd3 23. Bxd3 Ne7 24. Re1 Nc6 25. Nd4 Nxd4 26. cxd4 Kf8 {½-½ (47) Papp,G (2589)-Malakhov,V (2665) Germany 2020}) 21. c4 {[%emt 0:19:57]} Rd8 {[%emt 0:01:33]} 22. b3 {[%emt 0:08:04]} Ne7 {[%emt 0:07:43]} 23. Qd2 {[%emt 0:05:59]} Ng6 {[%emt 0:28:12]} 24. Bd3 {[%emt 0:06:25]} Bg4 {[%emt 0:10:39]} 25. Ne5 {[%emt 0:05:10]} Bxe5 {[%emt 0:00:33]} 26. Bxe5 {[%emt 0:00:08]} Nxe5 {[%emt 0:00:06]} 27. Rxe5 {[%emt 0:00:09] The position is equal.} Qf6 {[%emt 0:00:25] Against Re7} 28. f4 {[%emt 0:15:50]} b6 {[%emt 0:04:24]} 29. Qf2 {[%emt 0:01:53][%cal Of2d4]} Kf8 {[%emt 0:13:35]} 30. Qd2 {[%emt 0:10:24]} g6 {[%emt 0:02:47]} 31. g3 {[%emt 0:01:28]} Kg7 {[%emt 0:00:47]} 32. Kf2 {[%emt 0:00:56]} g5 {[%emt 0:09:14]} 33. Kg1 {[%emt 0:01:28]} Bh3 {[%emt 0:04:32]} 34. Re2 {[%emt 0:02:49]} gxf4 {[%emt 0:03:56]} 35. Qxf4 {[%emt 0:00:21]} Qxf4 {[%emt 0:00:05]} 36. gxf4 $11 {[%emt 0:00:03][%mdl 4096] Endgame KRB-KRB} Kf6 {[%emt 0:00:59]} 37. Kf2 {[%emt 0:00:24]} Rg8 {[%emt 0:01:21]} 38. Be4 {[%emt 0:00:37]} Re8 {[%emt 0:01:31]} 39. Bd5 {[%emt 0:01:26]} Rxe2+ {[%emt 0:00:55]} 40. Kxe2 {[%emt 0:00:04] aiming for Kd3. KB-KB} Bf5 {[%emt 0:00:25]} 41. b4 {[%emt 0:30:52]} Ke7 {[%emt 0:30:21]} 42. a3 {[%emt 0:00:00]} f6 {[%emt 0:00:00]} 43. Kd2 {[%emt 0:00:00]} Kd6 {[%emt 0:00:00]} 44. Bf3 {[%emt 0:00:00]} a5 {[%emt 0:00:00]} 45. Bg2 {[%emt 0:00:00]} axb4 {[%emt 0:00:00]} 46. axb4 {[%emt 0:00:00]} Bg6 {[%emt 0:00:00]} 47. Bf3 $1 {[%emt 0:00:00]} Bf5 {[%emt 0:00:00]} 48. Bg2 {[%emt 0:00:00]} Bg6 {[%emt 0:00:00]} 49. Bf3 {[%emt 0:00:00] A balanced but interesting game.  Weighted Error Value: White=0.02 (flawless) /Black=0.01 (flawless)} 1/2-1/2

[Event "FRA-ch Teams Top 16-Bas 2022"]
[Site "Chartres"]
[Date "2022.06.19"]
[Round "11.2"]
[White "Piorun, Kacper"]
[Black "Neiksans, Arturs"]
[Result "1/2-1/2"]
[ECO "E06"]
[WhiteElo "2635"]
[BlackElo "2579"]
[Annotator "TA"]
[PlyCount "111"]
[EventDate "2022.06.16"]
[EventType "team-tourn"]
[EventCountry "FRA"]
[SourceTitle "playchess.com"]
[Source "ChessBase"]
[SourceQuality "1"]
[TimeControl "40/5400+30:1800+30"]

{[%evp 18,111,12,15,25,0,8,0,43,40,49,41,62,56,41,27,61,16,16,30,14,18,25,16,40,27,24,18,9,9,50,53,59,55,54,50,63,43,49,35,43,42,44,16,16,16,16,16,16,16,18,16,16,16,16,15,29,0,16,16,16,16,16,12,12,12,12,12,12,12,12,12,12,12,14,14,17,12,12,4,12,0,12,4,12,4,12,0,12,12,12,0,12,0,12,0]} 1. d4 {[%emt 0:00:04]} Nf6 {[%emt 0:00:23]} 2. c4 {[%emt 0:00:12]} e6 {[%emt 0:00:15]} 3. g3 {[%emt 0:00:10]} d5 {[%emt 0:00:37]} 4. Bg2 {[%emt 0:00:24]} Be7 {[%emt 0:02:53]} 5. Nf3 {[%emt 0:00:23][%cal Bg1f3,Bf3e5,Be5c4][%mdl 32]} O-O {[%emt 0:00:07]} 6. Nc3 {[%emt 0:03:27]} dxc4 {[%emt 0:06:04]} 7. Ne5 {[%emt 0:00:12]} c5 {[%emt 0:11:40]} 8. dxc5 {[%emt 0:00:18]} Qxd1+ {[%emt 0:07:07]} 9. Nxd1 {[%emt 0:00:33]} Bxc5 {[%emt 0:00:50]} 10. O-O {[%emt 0:08:22]} Nd5 {[%emt 0:12:41] E06: Closed Catalan: Early deviations.} 11. Nxc4 {[%emt 0:03:00]} Nc6 {[%emt 0:00:53]} 12. Bd2 {[%emt 0:09:03]} Bd7 {[%emt 0:02:34]} 13. Nc3 {[%emt 0:08:37] [#]} Nb6 $146 {[%emt 0:23:00]} ({Predecessor:} 13... Nxc3 14. Bxc3 Rfd8 15. Na5 Rab8 16. Nxc6 Bxc6 17. Bxc6 bxc6 18. Rfd1 f5 19. Rxd8+ Rxd8 {½-½ (61) Schlosser,P (2569)-Rau,H (2425) Deizisau 2009}) 14. Nxb6 {[%emt 0:15:38]} Bxb6 {[%emt 0:00:52]} 15. Na4 {[%emt 0:01:18]} Bd4 {[%emt 0:01:02]} 16. Rac1 {[%emt 0:15:03]} Ne7 {[%emt 0:10:43]} 17. Nc5 {[%emt 0:14:39]} Bxc5 {[%emt 0:01:54]} 18. Rxc5 {[%emt 0:00:03] Black must now prevent Rc7.} Bc6 {[%emt 0:00:07]} 19. e4 {[%emt 0:00:05]} Rfd8 {[%emt 0:00:40]} 20. Be3 {[%emt 0:00:23]} Rd3 {[%emt 0:01:15]} 21. Rfc1 {[%emt 0:00:54]} Rad8 {[%emt 0:00:53]} 22. Bf1 {[%emt 0:01:47]} Rd1 {[%emt 0:01:18]} 23. f3 {[%emt 0:00:10]} a6 {[%emt 0:02:39]} (23... f5 {with more complications.} 24. exf5 Nxf5 25. Kf2 Nxe3 26. Kxe3 R1d2) 24. Kf2 {[%emt 0:00:19]} h6 {[%emt 0:01:26]} 25. h4 {[%emt 0:01:16]} Rxc1 {[%emt 0:02:12]} 26. Rxc1 {[%emt 0:03:16]} Kf8 {[%emt 0:02:05]} 27. g4 {[%emt 0:04:16]} Ke8 {[%emt 0:00:09]} 28. Be2 {[%emt 0:00:55]} Rc8 {[%emt 0:02:20]} 29. Bd4 {[%emt 0:02:24]} f6 {[%emt 0:00:06]} 30. h5 {[%emt 0:00:48]} e5 {[%emt 0:03:48]} 31. Be3 {[%emt 0:02:37]} Bd7 {[%emt 0:00:03]} 32. Rxc8+ {[%emt 0:00:40]} Nxc8 $11 {[%emt 0:00:45][%mdl 4096] Endgame KBB-KBN} 33. Bc4 {[%emt 0:01:40]} Nd6 {[%emt 0:01:04]} 34. Bd5 {[%emt 0:00:29] next Bc5 is good for White.} Bc8 {[%emt 0:00:29]} 35. Bc5 {[%emt 0:00:47]} Nb5 {[%emt 0:00:14]} 36. Bb6 {[%emt 0:01:05]} Nd6 {[%emt 0:00:25]} 37. Bc5 {[%emt 0:02:20]} Nf7 {[%emt 0:00:10] The position is equal.} 38. a4 {[%emt 0:00:47]} Ng5 {[%emt 0:00:34]} 39. Be3 {[%emt 0:00:47]} Ne6 {[%emt 0:00:26]} 40. Ke2 {[%emt 0:00:43]} Nc7 {[%emt 0:00:34]} 41. Bc4 {[%emt 0:30:15]} Bd7 {[%emt 0:32:09]} 42. Bb3 {[%emt 0:00:00]} Be6 {[%emt 0:00:00]} 43. Bd1 {[%emt 0:00:00]} Bd7 {[%emt 0:00:00]} 44. Kd3 {[%emt 0:00:00]} Ne6 {[%emt 0:00:00]} 45. Kc4 {[%emt 0:00:00]} Bc6 {[%emt 0:00:00]} 46. Bb6 {[%emt 0:00:00]} Kd7 {[%emt 0:00:00]} 47. b3 {[%emt 0:00:00]} Kd6 {[%emt 0:00:00]} 48. Be2 {[%emt 0:00:00]} Be8 {[%emt 0:00:00]} 49. Bd1 {[%emt 0:00:00]} Kc6 {[%emt 0:00:00]} 50. Be3 {[%emt 0:00:00]} Bf7 {[%emt 0:00:00]} 51. Kb4 {[%emt 0:00:00]} Be8 {[%emt 0:00:00]} 52. Be2 {[%emt 0:00:00]} Bf7 {[%emt 0:00:00]} 53. Bc4 {[%emt 0:00:00] Threatening Bd5+.} Nd8 $1 {[%emt 0:00:00]} 54. Be2 {[%emt 0:00:00]} Ne6 {[%emt 0:00:00]} 55. Bc4 {[%emt 0:00:00]} Nd8 $1 {[%emt 0:00:00]} 56. Be2 {[%emt 0:00:00] Weighted Error Value: White=0.07 (flawless) /Black=0.05 (flawless)} 1/2-1/2

[Event "FRA-ch Teams Top 16-Bas 2022"]
[Site "Chartres"]
[Date "2022.06.19"]
[Round "11.3"]
[White "Heinz, Timothee"]
[Black "Van Foreest, Lucas"]
[Result "0-1"]
[ECO "D37"]
[WhiteElo "2381"]
[BlackElo "2572"]
[Annotator "TA"]
[PlyCount "99"]
[EventDate "2022.06.16"]
[EventType "team-tourn"]
[EventCountry "FRA"]
[SourceTitle "playchess.com"]
[Source "ChessBase"]
[SourceQuality "1"]
[TimeControl "40/5400+30:1800+30"]

{[%evp 9,99,37,35,39,36,29,35,27,29,16,30,12,0,0,15,0,18,0,0,0,0,0,0,0,0,0,0,-6,-4,-6,0,0,0,0,-2,-9,-10,-101,-89,-107,-91,-91,-88,-110,-115,-172,-125,-141,-127,-151,-145,-147,-150,-149,-143,-144,-135,-148,-145,-129,-118,-153,-153,-153,-153,-153,-153,-229,-193,-257,-273,-270,-277,-266,-245,-205,-153,-150,0,-292,-302,-295,-290,-278,-271,-263,-258,-1345,-1347,-1147,-1182,-622]} 1. d4 {[%emt 0:00:15]} d5 {[%emt 0:00:26]} 2. Nf3 {[%emt 0:00:08]} e6 {[%emt 1:31:04]} 3. c4 {[%emt 0:00:25]} Nf6 {[%emt 0:00:00]} 4. Nc3 {[%emt 0:00:07]} h6 {[%emt 0:00:00]} 5. Bf4 {[%emt 0:05:23]} Bd6 {[%emt 0:00:00]} 6. Bxd6 {[%emt 0:02:36] D37: Queen's Gambit Declined: 5 Bf4.} Qxd6 $1 {[%emt 0:00:00] 6...Qxd6 is better than 6...cxd6.} 7. e3 {[%emt 0:00:16]} O-O {[%emt 0:00:00]} 8. Rc1 {[%emt 0:00:34] White is slightly better.} Qe7 {[%emt 0:00:00]} 9. Bd3 {[%emt 0:04:01]} Rd8 {[%emt 0:00:00]} 10. Qc2 {[%emt 0:00:56]} dxc4 {[%emt 0:00:00]} 11. Bxc4 {[%emt 0:00:30] [#]} b6 $146 {[%emt 0:00:00]} ({Predecessor:} 11... c5 12. O-O cxd4 13. Nxd4 Bd7 14. Rfd1 Nc6 15. Bb5 Nxd4 16. Rxd4 Bxb5 17. Nxb5 a6 18. Rxd8+ Rxd8 19. Nc3 Qc7 20. h3 Qc4 21. Rd1 Rc8 22. Rd4 Qc7 {½-½ (23) Villegas,B-Guimard,C Mar del Plata 1942}) 12. O-O {[%emt 0:04:47]} Bb7 {[%emt 0:00:00]} 13. Be2 {[%emt 0:03:40]} Nbd7 {[%emt 0:00:00][%cal Bb8d7,Bd7c5,Bc5e4][%mdl 32]} 14. Rfd1 {[%emt 0:00:53]} c5 {[%emt 0:00:00]} 15. h3 {[%emt 0:09:13]} Rac8 {[%emt 0:00:00]} 16. dxc5 {[%emt 0:02:47]} Nxc5 {[%emt 0:00:00]} 17. Rxd8+ {[%emt 0:00:12]} Rxd8 {[%emt 0:00:00]} 18. Rd1 {[%emt 0:01:10]} Rc8 {[%emt 0:00:00]} 19. Qd2 {[%emt 0:02:01]} Nd5 {[%emt 0:00:00]} 20. Qd4 {[%emt 0:06:38]} Nxc3 {[%emt 0:00:00]} 21. Qxc3 {[%emt 0:03:32]} Ne4 {[%emt 0:00:00]} 22. Qd4 {[%emt 0:04:47]} Bd5 {[%emt 0:00:00]} 23. Ne1 {[%emt 0:05:19]} (23. a3 $11) 23... Qh4 $17 {[%emt 0:00:00]} 24. Nd3 {[%emt 0:06:24]} Rc4 $1 $36 {[%emt 0:00:00][%mdl 2048] Black is on the roll. Black is more active.} (24... Bxa2 25. g3 Qxh3 26. Nf4 (26. Qxe4 Bd5 $11) 26... Nxg3 27. Qd8+ Kh7 28. Qd3+ (28. Nxh3 Nxe2+ 29. Kg2 Rxd8 $11) 28... Qf5 29. fxg3 $16) 25. Qe5 {[%emt 0:00:21]} Rc2 {[%emt 0:00:00][%csl LRa2,LRe2]} 26. Re1 {[%emt 0:07:43]} Rd2 {[%emt 0:00:00]} ({Don't play} 26... Bxa2 $6 27. g3 Qxh3 28. Qxe4 $11) ({Resist} 26... Nxf2 27. Nxf2 Qb4 28. Nd3 $16) 27. g3 {[%emt 0:11:52]} (27. a3 $17) 27... Qxh3 {[%emt 0:00:00]} (27... Qd8 $19 28. h4 g5 29. hxg5 hxg5) 28. Nf4 {[%emt 0:00:08]} Qf5 {[%emt 0:00:00] Chess con chili.} 29. Qxf5 {[%emt 0:00:38]} exf5 {[%emt 0:00:00]} 30. Nxd5 {[%emt 0:00:47]} Rxd5 {[%emt 0:00:00]} 31. Rd1 {[%emt 0:00:05]} Rxd1+ {[%emt 0:00:00]} 32. Bxd1 {[%emt 0:00:04][%mdl 4096] Endgame KB-KN} Kf8 {[%emt 0:00:00]} 33. Kg2 {[%emt 0:02:15]} Ke7 {[%emt 0:00:00]} 34. Bc2 {[%emt 0:00:03]} Kf6 {[%emt 0:00:00]} 35. Bb3 {[%emt 0:01:18]} b5 {[%emt 0:00:00][%cal Bb6b5,Bb5b4][%mdl 32]} 36. Bd5 {[%emt 0:01:45]} a5 {[%emt 0:00:00]} 37. Bc6 {[%emt 0:04:04]} b4 {[%emt 0:00:00]} 38. Bb5 {[%emt 0:00:53]} (38. Bd5 $17) 38... g5 {[%emt 0:00:00]} 39. Kf3 {[%emt 0:05:12]} (39. Ba4 $142) 39... h5 $19 {[%emt 0:00:00]} 40. Kg2 {[%emt 0:03:08]} Nd6 $1 {[%emt 0:00:00]} 41. Bd3 {[%emt 0:30:59]} Ke6 {[%emt 0:24:51]} 42. Be2 {[%emt 0:01:55]} Ne4 {[%emt 0:08:32]} 43. Bc4+ {[%emt 0:00:24]} Kf6 {[%emt 0:00:35]} (43... Ke7 $1 $17 {Hoping for ...Nc5.} 44. Be2 Nd6) 44. Bd3 $2 {[%emt 0:00:00][%mdl 8192] [#]} (44. Bb5 $1 $11 {and White has nothing to worry.}) 44... Nd6 $1 {[%emt 0:00:00]} 45. Be2 {[%emt 0:00:00]} a4 {[%emt 0:00:00]} 46. Bd1 {[%emt 0:00:00] [#]} a3 {[%emt 0:00:00]} 47. bxa3 {[%emt 0:00:00]} bxa3 {[%emt 0:00:00]} 48. f4 $2 {[%emt 0:00:00]} ({Not} 48. Bxh5 $2 g4 49. Kf1 Kg5 50. Bxg4 fxg4 $19) (48. Bb3) 48... g4 {[%emt 0:00:00]} 49. Bb3 {[%emt 0:00:00]} Ke7 {[%emt 0:00:00]} 50. Kf2 {[%emt 0:00:00] Weighted Error Value: White=0.42/Black=0.07 (flawless)} 0-1

[Event "FRA-ch Teams Top 16-Bas 2022"]
[Site "Chartres"]
[Date "2022.06.19"]
[Round "11.4"]
[White "Vlachos, Anatole"]
[Black "Dionisi, Thomas"]
[Result "1-0"]
[ECO "C70"]
[WhiteElo "2410"]
[BlackElo "2408"]
[Annotator "TA"]
[PlyCount "97"]
[EventDate "2022.06.16"]
[EventType "team-tourn"]
[EventCountry "FRA"]
[SourceTitle "playchess.com"]
[Source "ChessBase"]
[SourceQuality "1"]
[TimeControl "40/5400+30:1800+30"]

{[%evp 9,97,33,31,31,31,31,31,31,38,22,37,30,22,27,30,41,33,34,41,36,43,42,46,35,48,40,62,54,62,60,77,77,81,73,93,89,231,239,231,233,270,271,271,271,274,264,290,281,354,304,343,320,326,253,304,300,297,295,485,452,531,523,508,482,793,781,780,352,409,409,409,409,409,408,403,402,402,282,394,387,780,787,772,629,5772,5593,29983,29984,29986,29987]} 1. e4 {[%emt 0:00:05]} e5 {[%emt 0:00:07]} 2. Nf3 {[%emt 0:00:05]} Nc6 {[%emt 0:00:03]} 3. Bb5 {[%emt 0:00:05]} a6 {[%emt 0:00:07]} 4. Ba4 {[%emt 0:00:08]} Bc5 {[%emt 0:00:05]} 5. c3 {[%emt 0:00:27]} Nge7 {[%emt 0:00:06]} 6. d4 {[%emt 0:00:43] C70: Ruy Lopez: 3...a6 4 Ba4, Norwegian and Delayed Schliemann.} exd4 {[%emt 0:00:04]} 7. cxd4 {[%emt 0:00:06]} Bb4+ {[%emt 0:00:02]} 8. Bd2 {[%emt 0:00:15] White is slightly better.} Bxd2+ {[%emt 0:00:04]} 9. Qxd2 {[%emt 0:00:11]} d5 {[%emt 0:00:03]} 10. exd5 {[%emt 0:00:54]} Qxd5 {[%emt 0:00:05]} 11. O-O {[%emt 0:00:40]} Be6 {[%emt 0:00:45]} 12. Nc3 {[%emt 0:00:57] [#]} Qa5 $146 {[%emt 0:01:15]} ({Predecessor:} 12... Qh5 13. Ne5 O-O 14. Bd1 Qh4 15. Nf3 Qh6 16. Qxh6 gxh6 17. Bc2 Rad8 18. Be4 Rd6 {0-1 (32) Kuybokarov,T (2549)-Nihal,S (2652) Riga 2021}) 13. Ne5 {[%emt 0:00:45]} O-O {[%emt 0:00:33]} 14. Bxc6 {[%emt 0:00:08]} Nxc6 {[%emt 0:01:41]} 15. Nxc6 {[%emt 0:00:06]} bxc6 {[%emt 0:00:02]} 16. Rfe1 {[%emt 0:09:51]} Rfd8 {[%emt 0:00:58]} 17. Rad1 {[%emt 0:01:29]} Qb4 {[%emt 0:34:27]} 18. b3 {[%emt 0:06:30]} h6 {[%emt 0:14:52]} 19. Na4 {[%emt 0:07:04][%cal Bc3a4,Ba4c5,Bc5a6][%mdl 32]} Qd6 {[%emt 0:01:12]} 20. Nc5 {[%emt 0:00:32]} Bd5 {[%emt 0:00:21]} 21. f3 {[%emt 0:03:05] Black must now prevent Nb7.} Qf6 {[%emt 0:01:52]} 22. Re5 {[%emt 0:01:10] White is more active.} Re8 {[%emt 0:06:22] [#] This costs Black the game.} (22... Qg6 $16) 23. Rxe8+ $1 $18 {[%emt 0:08:17]} Rxe8 {[%emt 0:00:02]} 24. Nxa6 {[%emt 0:00:22]} Qd6 {[%emt 0:02:30]} 25. Nc5 {[%emt 0:01:55]} Qg6 {[%emt 0:00:51] Hoping for ...Bxf3.} 26. Rf1 {[%emt 0:03:06]} h5 {[%emt 0:02:11]} 27. a4 {[%emt 0:02:07][%cal Ba2a4,Ba4a5,Ba5a6,Ba6a7][%mdl 32]} h4 {[%emt 0:00:18]} 28. h3 {[%emt 0:01:02]} Be6 {[%emt 0:09:24]} 29. Kh1 {[%emt 0:00:14]} Bf5 {[%emt 0:02:19]} 30. Re1 {[%emt 0:06:29]} Rd8 {[%emt 0:02:36]} 31. Qf2 {[%emt 0:03:38]} Qh6 {[%emt 0:04:02]} 32. a5 {[%emt 0:02:18]} Qf4 {[%emt 0:04:43]} 33. a6 {[%emt 0:13:35]} Rxd4 $2 {[%emt 0:01:00]} (33... Rc8 {is a better defense.} 34. a7 Ra8) 34. Qe3 {[%emt 0:00:29]} ({Not} 34. Re8+ Kh7 35. Qf1 Bxh3 $18) 34... Qg3 {[%emt 0:02:01][%cal Of5h3]} 35. Qxd4 {[%emt 0:00:06] [#] White threatens Re8+ and mate.} Qxe1+ {[%emt 0:00:08][%mdl 4096] Endgame KQB-KQN} 36. Qg1 {[%emt 0:00:05]} Qc3 {[%emt 0:09:14]} (36... Qa5 $142 37. b4 Qa2) 37. a7 {[%emt 0:08:19]} Qa5 {[%emt 0:00:02]} 38. Na4 {[%emt 0:00:09]} (38. Nb7 $142 Qa6 39. Qc5) 38... Be6 {[%emt 0:01:22]} 39. Qe3 {[%emt 0:00:45]} c5 {[%emt 0:01:27]} 40. Qxc5 {[%emt 0:00:35]} Qe1+ {[%emt 0:00:13]} 41. Qg1 {[%emt 0:30:11]} Qa5 {[%emt 0:30:11]} 42. Qe3 {[%emt 0:00:10]} Bd5 {[%emt 0:00:00]} 43. Qe8+ {[%emt 0:00:00]} Kh7 {[%emt 0:00:00]} 44. Qe5 {[%emt 0:00:00]} g6 $2 {[%emt 0:00:00]} (44... Kg6 45. Nc3 Qa1+ 46. Kh2 Bb7) 45. Nc3 {[%emt 0:00:00]} Qa1+ {[%emt 0:00:00]} 46. Kh2 {[%emt 0:00:00]} Bxf3 {[%emt 0:00:00]} 47. Qxc7 {[%emt 0:00:00]} Kg7 {[%emt 0:00:00]} 48. gxf3 {[%emt 0:00:00]} Qe1 {[%emt 0:00:00]} 49. Ne4 {[%emt 0:00:00] Weighted Error Value: White=0.14 (very precise) /Black=0.47} ({Stronger than} 49. a8=Q Qf2+ 50. Kh1 Qf1+ 51. Kh2 Qf2+ 52. Kh1 Qf1+ 53. Kh2 Qf2+ $11) 1-0

[Event "FRA-ch Teams Top 16-Bas 2022"]
[Site "Chartres"]
[Date "2022.06.19"]
[Round "11.5"]
[White "Marcelin, Cyril"]
[Black "Flom, Gabriel"]
[Result "1/2-1/2"]
[ECO "A43"]
[WhiteElo "2440"]
[BlackElo "2442"]
[Annotator "TA"]
[PlyCount "91"]
[EventDate "2022.06.16"]
[EventType "team-tourn"]
[EventCountry "FRA"]
[SourceTitle "playchess.com"]
[Source "ChessBase"]
[SourceQuality "1"]
[TimeControl "40/5400+30:1800+30"]

{[%evp 9,91,50,65,64,63,65,73,56,71,67,95,83,84,66,77,31,35,31,85,23,62,59,68,47,58,39,60,53,52,50,80,80,91,62,78,82,72,50,75,0,98,96,87,81,69,79,77,0,101,105,120,106,96,97,137,136,162,137,144,110,245,66,66,59,47,46,80,80,77,98,98,89,95,18,18,18,16,11,10,16,32,33,52,44]} 1. d4 {[%emt 0:00:12]} c5 {[%emt 0:00:15]} 2. d5 {[%emt 0:02:14]} Nf6 {[%emt 0:00:09]} 3. Nc3 {[%emt 0:00:30]} d6 {[%emt 0:00:14]} 4. e4 {[%emt 0:00:58]} g6 {[%emt 0:00:08]} 5. Nf3 {[%emt 0:01:17]} a6 {[%emt 0:00:03]} 6. a4 {[%emt 0:01:19] Inhibits b5. A43: Schmid Benoni.} Bg4 {[%emt 0:01:10]} 7. Be2 {[%emt 0:08:05]} Bxf3 {[%emt 0:00:06]} 8. Bxf3 {[%emt 0:00:05] White is better.} Nbd7 {[%emt 0:00:05]} 9. O-O {[%emt 0:03:44]} Bg7 {[%emt 0:00:02]} 10. Bf4 {[%emt 0:06:20]} O-O {[%emt 0:00:06]} 11. Qd2 {[%emt 0:01:32]} Ne8 {[%emt 0:00:12]} 12. Bh6 {[%emt 0:02:34]} (12. Be2 $16) 12... Bxh6 $14 {[%emt 0:09:57]} 13. Qxh6 {[%emt 0:00:08] [#]} Nef6 $146 {[%emt 0:00:11]} (13... e6 $14) ({Predecessor:} 13... Ng7 14. a5 Rc8 15. Bg4 c4 16. Qd2 f5 17. exf5 gxf5 18. Be2 Rc5 19. Ra4 Rxa5 20. Rxc4 {1-0 (52) Mirzoev,A (2545)-Roy Chowdhury,S (2391) Bratto 2012}) 14. a5 {[%emt 0:10:14]} ({Better is} 14. Be2 $16) 14... b5 {[%emt 0:03:01]} 15. axb6 $1 {[%emt 0:00:13]} Qxb6 {[%emt 0:00:02]} 16. Ra2 {[%emt 0:01:54]} (16. Rfb1 {feels hotter.} c4 17. Be2 Qd4 18. Rd1) 16... Qb4 {[%emt 0:01:51]} 17. Qe3 {[%emt 0:06:26]} Rfb8 {[%emt 0:00:33]} 18. Be2 {[%emt 0:01:16]} Qd4 {[%emt 0:02:27]} 19. Qf4 {[%emt 0:33:33]} (19. Bxa6 Qxe3 20. fxe3 Ng4 $11) 19... Ne8 {[%emt 0:00:37]} 20. Rd1 {[%emt 0:00:46]} ({Reject} 20. Bxa6 Nc7 21. Ra4 Rb4 22. Rxb4 cxb4 $15) 20... Qg7 {[%emt 0:00:34]} 21. Qe3 {[%emt 0:02:45]} ({Of course not} 21. Bxa6 Nc7 22. Qg4 Ne5 $15) 21... Nc7 {[%emt 0:00:40]} 22. b3 {[%emt 0:01:11]} Rb4 {[%emt 0:08:20]} 23. f3 {[%emt 0:00:31]} Qe5 {[%emt 0:06:59]} 24. Rda1 {[%emt 0:00:17]} (24. f4 $16 Qg7 25. Ra5) 24... Nf6 {[%emt 0:00:03]} (24... f5 $1 $11) 25. Bc4 {[%emt 0:03:04]} ({Much weaker is} 25. Bxa6 $6 Nfxd5 $1 26. Nxd5 Nxd5 $11) 25... g5 {[%emt 0:02:01]} 26. Nd1 {[%emt 0:06:37][%cal Bc3d1,Bd1f2,Bf2d3][%mdl 32]} g4 {[%emt 0:01:13]} 27. Qc3 {[%emt 0:03:32] Strongly threatening Qxe5.} Qg5 {[%emt 0:02:58]} 28. Qe3 {[%emt 0:00:04]} (28. Nf2 $16) 28... Qg6 {[%emt 0:02:23]} (28... Qe5 $11 {remains equal.}) 29. Nf2 $16 {[%emt 0:00:05]} gxf3 {[%emt 0:00:25]} 30. Qxf3 {[%emt 0:00:01]} Rb6 {[%emt 0:02:28]} 31. Re1 {[%emt 0:00:03]} Kh8 {[%emt 0:02:46]} 32. e5 {[%emt 0:01:06]} Nd7 {[%emt 0:00:49]} 33. exd6 {[%emt 0:01:47]} exd6 {[%emt 0:00:05]} 34. Nd3 {[%emt 0:01:11] Against Ne5. aiming for Re7.} Qf6 {[%emt 0:02:38] [#] Against Re7} (34... Re8 $16) 35. Qxf6+ $2 {[%emt 0:00:28]} (35. Qh3 $1 $18 {[%cal Rh3d7]} Qd4+ 36. Nf2) 35... Nxf6 $14 {[%emt 0:00:01]} 36. Nf4 {[%emt 0:01:13] And now Re7 would win.} Kg8 {[%emt 0:01:08]} 37. Re7 {[%emt 0:00:42]} Rc8 {[%emt 0:00:23]} 38. Ra1 {[%emt 0:00:07]} Kf8 {[%emt 0:00:36]} 39. Re3 {[%emt 0:00:41] 0x0.001763085a19dp-1022s more active pieces.} Re8 {[%emt 0:03:48]} 40. Rf3 {[%emt 0:00:19]} Ng4 {[%emt 0:00:55]} 41. Ne6+ {[%emt 0:13:56]} (41. Rh3 $16) 41... Nxe6 $11 {[%emt 0:00:13]} 42. dxe6 {[%emt 0:00:06]} Ne5 {[%emt 0:00:04]} 43. Rf4 {[%emt 0:00:44] Black must now prevent Bd5.} Nxc4 {[%emt 0:00:52]} 44. exf7 {[%emt 0:00:17]} Re7 {[%emt 0:00:08] Threatens to win with ...Ne3.} 45. Rxc4 {[%emt 0:00:19]} Kxf7 {[%emt 0:00:17]} 46. Kf2 {[%emt 0:03:20] Weighted Error Value: White=0.24 (precise) /Black=0.21 (precise)} 1/2-1/2